fUSD/lending_fUSD_20250201
["ID","MTS","AMOUNT","RATE_DAILY","PERIOD"]
[351177455,1738397434775,-500.0,0.00017498,2]
[351177456,1738397434786,-500.0,0.00017498,2]
[351177457,1738397434796,-500.0,0.00017498,2]
[351177458,1738397434805,-500.0,0.00017498,2]
[351177459,1738397434815,-500.0,0.00017498,2]
[351177460,1738397434825,-500.0,0.00017498,2]
[351177461,1738397434834,-396.39523981,0.00017498,2]
[351177462,1738397434843,-746.01,0.00017498,2]
[351177463,1738397434852,-500.0,0.00017498,2]
[351177464,1738397434861,-500.0,0.00017498,2]
[351177465,1738397434871,-500.0,0.00017498,2]
[351177466,1738397434880,-500.0,0.00017498,2]
[351177467,1738397434889,-500.0,0.00017498,2]
[351177468,1738397434899,-500.0,0.00017498,2]
[351177469,1738397434909,-500.0,0.00017498,2]
[351177470,1738397434918,-500.0,0.00017498,2]
[351177471,1738397434929,-200.0,0.00017498,2]
[351177472,1738397434938,-524.4611766,0.00017498,2]
[351177473,1738397434947,-500.0,0.00017498,2]
[351177474,1738397434955,-500.0,0.00017498,2]
[351177475,1738397434964,-500.0,0.00017498,2]
[351177476,1738397434973,-500.0,0.00017498,2]
[351177477,1738397434982,-500.0,0.00017498,2]
[351177478,1738397434991,-500.0,0.00017498,2]
[351177479,1738397435000,-500.0,0.00017498,2]
[351177480,1738397435009,-500.0,0.00017498,2]
[351177481,1738397435018,-500.0,0.00017498,2]
[351177482,1738397435028,-500.0,0.00017498,2]
[351177483,1738397435037,-500.0,0.00017498,2]
[351177484,1738397435047,-500.0,0.00017498,2]
[351177485,1738397435056,-500.0,0.00017498,2]
[351177486,1738397435066,-500.0,0.00017498,2]
[351177487,1738397435077,-500.0,0.00017498,2]
[351177488,1738397435087,-500.0,0.00017498,2]
[351177489,1738397435096,-500.0,0.00017498,2]
[351177490,1738397435106,-500.0,0.00017498,2]
[351177491,1738397435116,-500.0,0.00017498,2]
[351177492,1738397435126,-500.0,0.00017498,2]
[351177493,1738397435136,-500.0,0.00017498,2]
[351177494,1738397435146,-500.0,0.00017498,2]
[351177495,1738397435156,-500.0,0.00017498,2]
[351177496,1738397435166,-500.0,0.00017498,2]
[351177497,1738397435175,-500.0,0.00017498,2]
[351177498,1738397435185,-500.0,0.00017498,2]
[351177499,1738397435194,-500.0,0.00017498,2]
[351177500,1738397435203,-500.0,0.00017498,2]
[351177501,1738397435212,-500.0,0.00017498,2]
[351177502,1738397435221,-500.0,0.00017498,2]
[351177503,1738397435231,-764.0,0.00017498,2]
[351177504,1738397435240,-566.42160152,0.00017498,2]
[351177505,1738397435250,-500.0,0.00017498,2]
[351177506,1738397435259,-810.2,0.00017498,2]
[351177507,1738397435269,-500.0,0.00017498,2]
[351177508,1738397435278,-500.0,0.00017498,2]
[351177509,1738397435287,-500.0,0.00017498,2]
[351177510,1738397435296,-500.0,0.00017498,2]
[351177511,1738397435306,-500.0,0.00017498,2]
[351177512,1738397435315,-650.28,0.00017498,2]
[351177513,1738397435325,-500.0,0.00017498,2]
[351177514,1738397435334,-520.42,0.00017498,2]
[351177515,1738397435344,-500.0,0.00017498,2]
[351177516,1738397435354,-500.0,0.00017498,2]
[351177517,1738397435363,-500.0,0.00017498,2]
[351177518,1738397435372,-500.0,0.00017498,2]
[351177519,1738397435381,-500.0,0.00017498,2]
[351177520,1738397435391,-233.35231951,0.00017498,2]
[351177521,1738397435400,-500.0,0.00017498,2]
[351177522,1738397435412,-500.0,0.00017498,2]
[351177523,1738397435421,-529.96,0.00017498,2]
[351177524,1738397435431,-500.0,0.00017498,2]
[351177525,1738397435440,-500.0,0.00017498,2]
[351177526,1738397435450,-585.03,0.00017498,2]
[351177527,1738397435459,-500.0,0.00017498,2]
[351177528,1738397435469,-818.98,0.00017498,2]
[351177529,1738397435478,-500.0,0.00017498,2]
[351177530,1738397435488,-500.0,0.00017498,2]
[351177531,1738397435497,-500.0,0.00017498,2]
[351177532,1738397435506,-500.0,0.00017498,2]
[351177533,1738397435516,-500.0,0.00017498,2]
[351177534,1738397435525,-500.0,0.00017498,2]
[351177535,1738397435534,-680.92,0.00017498,2]
[351177536,1738397435544,-500.0,0.00017498,2]
[351177537,1738397435554,-500.0,0.00017498,2]
[351177538,1738397435564,-500.0,0.00017498,2]
[351177539,1738397435573,-500.0,0.00017498,2]
[351177540,1738397435582,-581.16,0.00017498,2]
[351177541,1738397435592,-500.0,0.00017498,2]
[351177542,1738397435602,-500.0,0.00017498,2]
[351177543,1738397435611,-500.0,0.00017498,2]
[351177544,1738397435620,-500.0,0.00017498,2]
[351177545,1738397435630,-500.0,0.00017498,2]
[351177546,1738397435640,-159.30632014,0.00017498,2]
[351177547,1738397435650,-500.0,0.00017498,2]
[351177548,1738397435663,-500.0,0.00017498,2]
[351177549,1738397435672,-500.0,0.00017498,2]
[351177550,1738397435683,-536.99789693,0.00017498,2]
[351177551,1738397435692,-500.0,0.00017498,2]
[351177552,1738397435702,-646.16,0.00017498,2]
[351177553,1738397435711,-500.0,0.00017498,2]
[351177554,1738397435721,-500.0,0.00017498,2]
[351177555,1738397435730,-500.0,0.00017498,2]
[351177556,1738397435741,-497.35029511,0.00017498,2]
[351177557,1738397435750,-500.0,0.00017498,2]
[351177558,1738397435759,-323.59324912,0.00017498,2]
[351177559,1738397435768,-500.0,0.00017498,2]
[351177560,1738397435779,-596.2,0.00017498,2]
[351177561,1738397435789,-500.0,0.00017498,2]
[351177562,1738397435799,-505.25,0.00017498,2]
[351177563,1738397435810,-500.0,0.00017498,2]
[351177564,1738397435820,-500.0,0.00017498,2]
[351177565,1738397435830,-155.04729558,0.00017498,2]
[351177566,1738397435840,-151.5896551,0.00017498,2]
[351177567,1738397435849,-500.0,0.00017498,2]
[351177568,1738397435859,-500.0,0.00017498,2]
[351177569,1738397435868,-657.29,0.00017498,2]
[351177570,1738397435877,-904.5,0.00017498,2]
[351177571,1738397435888,-1157.68,0.00017498,2]
[351177572,1738397435897,-500.0,0.00017498,2]
[351177573,1738397435907,-764.67,0.00017498,2]
[351177574,1738397435917,-688.04,0.00017498,2]
[351177575,1738397435926,-424.80288241,0.00017498,2]
[351177576,1738397435935,-248.39842379,0.00017498,2]
[351177577,1738397435944,-500.0,0.00017498,2]
[351177578,1738397435955,-302.60780705,0.00017498,2]
[351177579,1738397435965,-912.44,0.00017498,2]
[351177580,1738397435977,-500.0,0.00017498,2]
[351177581,1738397435986,-500.0,0.00017498,2]
[351177582,1738397435995,-500.0,0.00017498,2]
[351177583,1738397436005,-1146.62,0.00017498,2]
[351177584,1738397436014,-571.34944249,0.00017498,2]
[351177585,1738397436023,-500.0,0.00017498,2]
[351177586,1738397436033,-500.0,0.00017498,2]
[351177587,1738397436043,-500.0,0.00017498,2]
[351177588,1738397436053,-1121.15,0.00017498,2]
[351177589,1738397436062,-929.72,0.00017498,2]
[351177590,1738397436072,-500.0,0.00017498,2]
[351177591,1738397436081,-500.0,0.00017498,2]
[351177592,1738397436090,-504.25,0.00017498,2]
[351177593,1738397436100,-936.95,0.00017498,2]
[351177594,1738397436109,-500.0,0.00017498,2]
[351177595,1738397436119,-514.90616661,0.00017498,2]
[351177596,1738397436128,-979.18,0.00017498,2]
[351177597,1738397436137,-650.1,0.00017498,2]
[351177598,1738397436147,-500.0,0.00017498,2]
[351177599,1738397436156,-500.0,0.00017498,2]
[351177600,1738397436166,-2793.18,0.00017498,2]
[351177601,1738397436178,-500.0,0.00017498,2]
[351177602,1738397436188,-500.0,0.00017498,2]
[351177603,1738397436198,-500.0,0.00017498,2]
[351177604,1738397436207,-2716.3,0.00017498,2]
[351177605,1738397436217,-500.0,0.00017498,2]
[351177606,1738397436227,-1221.59,0.00017498,2]
[351177607,1738397436236,-2269.42,0.00017498,2]
[351177608,1738397436245,-500.0,0.00017498,2]
[351177609,1738397436255,-500.0,0.00017498,2]
[351177610,1738397436264,-500.0,0.00017498,2]
[351177611,1738397436274,-500.0,0.00017498,2]
[351177612,1738397436283,-799.01,0.00017498,2]
[351177613,1738397436293,-515.37937729,0.00017498,2]
[351177614,1738397436302,-2817.71,0.00017498,2]
[351177615,1738397436311,-2811.52,0.00017498,2]
[351177616,1738397436320,-1029.24,0.00017498,2]
[351177617,1738397436330,-500.0,0.00017498,2]
[351177618,1738397436339,-500.0,0.00017498,2]
[351177619,1738397436348,-1795.71,0.00017498,2]
[351177620,1738397436358,-500.0,0.00017498,2]
[351177621,1738397436367,-500.0,0.00017498,2]
[351177622,1738397436376,-852.46,0.00017498,2]
[351177623,1738397436385,-2170.82,0.00017498,2]
[351177624,1738397436394,-500.0,0.00017498,2]
[351177625,1738397436403,-500.0,0.00017498,2]
[351177626,1738397436413,-813.12,0.00017498,2]
[351177627,1738397436422,-2104.28,0.00017498,2]
[351177628,1738397436431,-500.0,0.00017498,2]
[351177629,1738397436440,-500.0,0.00017498,2]
[351177630,1738397436450,-500.0,0.00017498,2]
[351177631,1738397436460,-500.0,0.00017498,2]
[351177632,1738397436469,-875.62,0.00017498,2]
[351177633,1738397436478,-703.73,0.00017498,2]
[351177634,1738397436491,-2537.35,0.00017498,2]
[351177635,1738397436504,-884.77,0.00017498,2]
[351177636,1738397436514,-500.0,0.00017498,2]
[351177637,1738397436524,-500.0,0.00017498,2]
[351177638,1738397436533,-500.0,0.00017498,2]
[351177639,1738397436544,-500.0,0.00017498,2]
[351177640,1738397436553,-2412.3,0.00017498,2]
[351177641,1738397436564,-500.0,0.00017498,2]
[351177642,1738397436575,-500.0,0.00017498,2]
[351177643,1738397436585,-1539.49,0.00017498,2]
[351177644,1738397436595,-500.0,0.00017498,2]
[351177645,1738397436604,-500.0,0.00017498,2]
[351177646,1738397436613,-500.0,0.00017498,2]
[351177647,1738397436622,-209.11458206,0.00017498,2]
[351177648,1738397436632,-942.41,0.00017498,2]
[351177649,1738397436641,-2084.29,0.00017498,2]
[351177650,1738397436650,-1625.21,0.00017498,2]
[351177651,1738397436659,-1236.23,0.00017498,2]
[351177652,1738397436669,-1281.41,0.00017498,2]
[351177653,1738397436680,-226.86787356,0.00017498,2]
[351177654,1738397436689,-850.84,0.00017498,2]
[351177655,1738397436698,-500.0,0.00017498,2]
[351177656,1738397436708,-504.65,0.00017498,2]
[351177657,1738397436718,-500.0,0.00017498,2]
[351177658,1738397436727,-500.0,0.00017498,2]
[351177659,1738397436737,-664.05,0.00017498,2]
[351177660,1738397436751,-500.0,0.00017498,2]
[351177661,1738397436760,-1000.0,0.00017498,2]
[351177662,1738397436770,-762.57,0.00017498,2]
[351177663,1738397436780,-1233.3,0.00017498,2]
[351177664,1738397436790,-700.51,0.00017498,2]
[351177665,1738397436949,-1500.84,0.00017498,2]
[351177666,1738397436959,-528.70717247,0.00017498,2]
[351177667,1738397436969,-500.0,0.00017498,2]
[351177668,1738397436980,-544.58,0.00017498,2]
[351177669,1738397436989,-1174.53,0.00017498,2]
[351177670,1738397436999,-500.0,0.00017498,2]
[351177671,1738397437008,-500.0,0.00017498,2]
[351177672,1738397437017,-612.69,0.00017498,2]
[351177673,1738397437026,-1416.27,0.00017498,2]
[351177674,1738397437035,-609.86,0.00017498,2]
[351177675,1738397437044,-2619.63,0.00017498,2]
[351177676,1738397437054,-500.0,0.00017498,2]
[351177677,1738397437070,-500.0,0.00017498,2]
[351177678,1738397437080,-500.0,0.00017498,2]
[351177679,1738397437089,-500.0,0.00017498,2]
[351177680,1738397437099,-506.38,0.00017498,2]
[351177681,1738397437109,-500.0,0.00017498,2]
[351177682,1738397437118,-1838.05,0.00017498,2]
[351177683,1738397437127,-1078.81,0.00017498,2]
[351177684,1738397437136,-500.0,0.00017498,2]
[351177685,1738397437146,-643.28,0.00017498,2]
[351177686,1738397437155,-500.0,0.00017498,2]
[351177687,1738397437164,-500.0,0.00017498,2]
[351177688,1738397437174,-500.0,0.00017498,2]
[351177689,1738397437187,-500.0,0.00017498,2]
[351177690,1738397437197,-911.54,0.00017498,2]
[351177691,1738397437206,-507.10472504,0.00017498,2]
[351177692,1738397437216,-1076.44,0.00017498,2]
[351177693,1738397437225,-500.0,0.00017498,2]
[351177694,1738397437235,-610.59,0.00017498,2]
[351177695,1738397437245,-500.0,0.00017498,2]
[351177696,1738397437254,-500.0,0.00017498,2]
[351177697,1738397437265,-500.0,0.00017498,2]
[351177698,1738397437275,-500.0,0.00017498,2]
[351177699,1738397437285,-798.86,0.00017498,2]
[351177700,1738397437294,-500.0,0.00017498,2]
[351177701,1738397437303,-521.25455112,0.00017498,2]
[351177702,1738397437312,-500.0,0.00017498,2]
[351177703,1738397437323,-1312.38,0.00017498,2]
[351177704,1738397437332,-500.0,0.00017498,2]
[351177705,1738397437342,-950.77,0.00017498,2]
[351177706,1738397437351,-500.0,0.00017498,2]
[351177707,1738397437361,-500.0,0.00017498,2]
[351177708,1738397437370,-1318.44,0.00017498,2]
[351177709,1738397437379,-500.0,0.00017498,2]
[351177710,1738397437389,-558.72,0.00017498,2]
[351177711,1738397437398,-500.0,0.00017498,2]
[351177712,1738397437409,-2599.43,0.00017498,2]
[351177713,1738397437419,-430.08167897,0.00017498,2]
[351177714,1738397437430,-500.0,0.00017498,2]
[351177715,1738397437440,-7347.77,0.00017498,2]
[351177716,1738397437449,-500.0,0.00017498,2]
[351177717,1738397437459,-500.0,0.00017498,2]
[351177718,1738397437468,-500.0,0.00017498,2]
[351177719,1738397437478,-500.0,0.00017498,2]
[351177720,1738397437487,-500.0,0.00017498,2]
[351177721,1738397437497,-1672.1,0.00017498,2]
[351177722,1738397437506,-500.0,0.00017498,2]
[351177723,1738397437515,-523.88,0.00017498,2]
[351177724,1738397437524,-502.37562042,0.00017499,2]
[351177725,1738397437534,-150.0,0.00017513,2]
[351177726,1738397437543,-8968.80486721,0.00017533,2]
[351177727,1738397437553,-1142.01,0.00017534,2]
[351177728,1738397437562,-1193.55,0.00017534,2]
[351177729,1738397437572,-915.77,0.00017534,2]
[351177730,1738397437582,-500.0,0.00017534,2]
[351177731,1738397437592,-1111.37,0.00017534,2]
[351177732,1738397437601,-2538.1,0.00017534,2]
[351177733,1738397437611,-506.02662761,0.00017534,2]
[351177734,1738397437620,-1522.77,0.00017534,2]
[351177735,1738397437630,-2439.79,0.00017534,2]
[351177736,1738397437639,-500.0,0.00017534,2]
[351177737,1738397437648,-1963.76,0.00017534,2]
[351177738,1738397437658,-1320.48,0.00017534,2]
[351177739,1738397437667,-500.0,0.00017534,2]
[351177740,1738397437677,-2359.57,0.00017534,2]
[351177741,1738397437686,-936.99,0.00017534,2]
[351177742,1738397437697,-1687.99,0.00017534,2]
[351177743,1738397437706,-2414.95,0.00017534,2]
[351177744,1738397437716,-1500.52,0.00017534,2]
[351177745,1738397437727,-3930.69,0.00017534,2]
[351177746,1738397437738,-500.0,0.00017534,2]
[351177747,1738397437750,-1052.23,0.00017534,2]
[351177748,1738397437759,-500.0,0.00017534,2]
[351177749,1738397437769,-500.0,0.00017534,2]
[351177750,1738397437779,-564.11,0.00017534,2]
[351177751,1738397437788,-500.0,0.00017534,2]
[351177752,1738397437798,-2324.97,0.00017534,2]
[351177753,1738397437808,-558.77,0.00017534,2]
[351177754,1738397437819,-150.0,0.00017547,2]
[351177755,1738397437829,-297.59,0.00017551,2]
[351177756,1738397437839,-459.259,0.00017552,2]
[351177757,1738397437848,-150.0,0.00017559,2]
[351177758,1738397437858,-150.0,0.00017559,2]
[351177759,1738397437868,-150.0,0.00017586,2]
[351177760,1738397437878,-500.0,0.00017587,2]
[351177761,1738397437888,-500.0,0.00017588,2]
[351177762,1738397437899,-1636.74213139,0.0001759,2]
[351177763,1738397437908,-150.0,0.0001759,2]
[351177764,1738397437918,-150.0,0.00017604,2]
[351177765,1738397437927,-1000.0,0.00017625,2]
[351177766,1738397437937,-150.0,0.00017632,2]
[351177767,1738397437946,-150.0,0.00017633,2]
[351177768,1738397437956,-500.0,0.00017633,2]
[351177769,1738397437966,-1087.76,0.00017633,2]
[351177770,1738397437976,-500.0,0.00017633,2]
[351177771,1738397437997,-846.43,0.00017633,2]
[351177772,1738397438009,-1825.94,0.00017634,2]
[351177773,1738397438019,-775.49,0.00017634,2]
[351177774,1738397438029,-4380.44,0.00017634,2]
[351177775,1738397438038,-1090.03,0.00017634,2]
[351177776,1738397438049,-1865.27,0.00017634,2]
[351177777,1738397438059,-1664.64,0.00017634,2]
[351177778,1738397438069,-500.0,0.00017634,2]
[351177779,1738397438079,-500.0,0.00017634,2]
[351177780,1738397438089,-598.96,0.00017634,2]
[351177781,1738397438099,-299.253511,0.00017634,2]
[351177782,1738397438109,-670.62,0.00017634,2]
[351177783,1738397438120,-1077.49,0.00017634,2]
[351177784,1738397438132,-1335.32,0.00017634,2]
[351177785,1738397438142,-500.0,0.00017634,2]
[351177786,1738397438151,-2333.34,0.00017634,2]
[351177787,1738397438162,-1185.53,0.00017634,2]
[351177788,1738397438173,-1860.73,0.00017634,2]
[351177789,1738397438183,-977.56,0.00017634,2]
[351177790,1738397438193,-334.949787,0.00017634,2]
[351177791,1738397438203,-855.84,0.00017634,2]
[351177792,1738397438212,-1975.99,0.00017634,2]
[351177793,1738397438222,-1583.75,0.00017634,2]
[351177794,1738397438231,-893.67,0.00017634,2]
[351177795,1738397438241,-1084.43,0.00017634,2]
[351177796,1738397438251,-2468.28,0.00017634,2]
[351177797,1738397438261,-683.63,0.00017634,2]
[351177798,1738397438271,-3222.48,0.00017634,2]
[351177799,1738397438282,-709.63,0.00017634,2]
[351177800,1738397438293,-3408.63,0.00017634,2]
[351177801,1738397438303,-762.86,0.00017634,2]
[351177802,1738397438313,-927.07,0.00017634,2]
[351177803,1738397438323,-984.73,0.00017634,2]
[351177804,1738397438333,-912.31,0.00017634,2]
[351177805,1738397438343,-4485.99,0.00017634,2]
[351177806,1738397438352,-3396.92,0.00017634,2]
[351177807,1738397438361,-261.8888,0.00017635,2]
[351177808,1738397438370,-500.0,0.00017635,2]
[351177809,1738397438380,-500.0,0.00017635,2]
[351177810,1738397438390,-500.0,0.00017635,2]
[351177811,1738397438400,-500.0,0.00017635,2]
[351177812,1738397438409,-500.0,0.00017635,2]
[351177813,1738397438419,-500.0,0.00017635,2]
[351177814,1738397438439,-500.0,0.00017635,2]
[351177816,1738397438448,-395.47,0.00017635,2]
[351177818,1738397438457,-587.6319781,0.00017635,2]
[351177820,1738397438467,-500.0,0.00017635,2]
[351177822,1738397438476,-500.0,0.00017635,2]
[351177824,1738397438485,-467.599896,0.00017635,2]
[351177826,1738397438494,-574.68,0.00017635,2]
[351177828,1738397438503,-500.0,0.00017635,2]
[351177830,1738397438512,-500.0,0.00017635,2]
[351177832,1738397438521,-194.06430477,0.00017635,2]
[351177834,1738397438531,-500.0,0.00017635,2]
[351177836,1738397438541,-500.0,0.00017635,2]
[351177838,1738397438550,-500.0,0.00017635,2]
[351177840,1738397438559,-500.0,0.00017635,2]
[351177842,1738397438569,-500.0,0.00017635,2]
[351177844,1738397438578,-500.0,0.00017635,2]
[351177846,1738397438588,-546.91,0.00017635,2]
[351177848,1738397438596,-500.0,0.00017635,2]
[351177849,1738397438605,-481.4190233,0.00017635,2]
[351177851,1738397438615,-598.15,0.00017635,2]
[351177853,1738397438625,-500.0,0.00017635,2]
[351177855,1738397438634,-500.0,0.00017635,2]
[351177857,1738397438643,-500.0,0.00017635,2]
[351177859,1738397438653,-500.0,0.00017635,2]
[351177861,1738397438662,-500.0,0.00017635,2]
[351177863,1738397438671,-500.0,0.00017635,2]
[351177865,1738397438681,-500.0,0.00017635,2]
[351177866,1738397438690,-500.0,0.00017635,2]
[351177868,1738397438699,-500.0,0.00017635,2]
[351177870,1738397438709,-500.0,0.00017635,2]
[351177872,1738397438718,-516.97469758,0.00017635,2]
[351177874,1738397438727,-500.0,0.00017635,2]
[351177876,1738397438739,-500.0,0.00017635,2]
[351177878,1738397438750,-500.0,0.00017635,2]
[351177880,1738397438759,-500.0,0.00017635,2]
[351177882,1738397438768,-652.88,0.00017635,2]
[351177884,1738397438779,-500.0,0.00017635,2]
[351177886,1738397438788,-500.0,0.00017635,2]
[351177888,1738397438797,-500.0,0.00017635,2]
[351177890,1738397438806,-512.42546817,0.00017635,2]
[351177891,1738397438817,-500.0,0.00017635,2]
[351177893,1738397438826,-500.0,0.00017635,2]
[351177895,1738397438835,-500.0,0.00017635,2]
[351177897,1738397438844,-500.0,0.00017635,2]
[351177899,1738397438853,-500.0,0.00017635,2]
[351177901,1738397438862,-654.97,0.00017635,2]
[351177903,1738397438872,-500.0,0.00017635,2]
[351177905,1738397438881,-500.0,0.00017635,2]
[351177907,1738397438897,-500.0,0.00017635,2]
[351177909,1738397438909,-500.0,0.00017635,2]
[351177911,1738397438918,-500.0,0.00017635,2]
[351177913,1738397438928,-500.0,0.00017635,2]
[351177915,1738397438937,-500.0,0.00017635,2]
[351177917,1738397438946,-631.03,0.00017635,2]
[351177918,1738397438955,-500.0,0.00017635,2]
[351177920,1738397438965,-500.0,0.00017635,2]
[351177922,1738397438974,-500.0,0.00017635,2]
[351177924,1738397438983,-628.59,0.00017635,2]
[351177926,1738397438992,-500.0,0.00017635,2]
[351177928,1738397439002,-500.0,0.00017635,2]
[351177930,1738397439011,-500.0,0.00017635,2]
[351177932,1738397439020,-500.0,0.00017635,2]
[351177934,1738397439029,-500.0,0.00017635,2]
[351177936,1738397439038,-500.0,0.00017635,2]
[351177937,1738397439046,-500.0,0.00017635,2]
[351177939,1738397439055,-500.0,0.00017635,2]
[351177941,1738397439065,-500.0,0.00017635,2]
[351177943,1738397439075,-500.0,0.00017635,2]
[351177945,1738397439084,-717.26,0.00017635,2]
[351177947,1738397439096,-500.0,0.00017635,2]
[351177949,1738397439106,-652.47,0.00017635,2]
[351177951,1738397439115,-500.0,0.00017635,2]
[351177953,1738397439125,-500.0,0.00017635,2]
[351177955,1738397439134,-500.0,0.00017635,2]
[351177957,1738397439144,-500.0,0.00017635,2]
[351177959,1738397439153,-500.0,0.00017635,2]
[351177961,1738397439162,-746.01,0.00017635,2]
[351177963,1738397439171,-500.0,0.00017635,2]
[351177965,1738397439180,-500.0,0.00017635,2]
[351177967,1738397439189,-500.0,0.00017635,2]
[351177969,1738397439200,-500.0,0.00017635,2]
[351177971,1738397439209,-500.0,0.00017635,2]
[351177973,1738397439217,-500.0,0.00017635,2]
[351177975,1738397439226,-500.0,0.00017635,2]
[351177977,1738397439236,-500.0,0.00017635,2]
[351177978,1738397439245,-200.0,0.00017635,2]
[351177980,1738397439255,-500.0,0.00017635,2]
[351177982,1738397439264,-500.0,0.00017635,2]
[351177984,1738397439273,-500.0,0.00017635,2]
[351177986,1738397439283,-500.0,0.00017635,2]
[351177988,1738397439292,-500.0,0.00017635,2]
[351177990,1738397439301,-500.0,0.00017635,2]
[351177992,1738397439311,-500.0,0.00017635,2]
[351177994,1738397439320,-500.0,0.00017635,2]
[351177996,1738397439329,-357.89889736,0.00017635,2]
[351177998,1738397439342,-500.0,0.00017635,2]
[351178000,1738397439351,-500.0,0.00017635,2]
[351178002,1738397439360,-500.0,0.00017635,2]
[351178004,1738397439370,-500.0,0.00017635,2]
[351178006,1738397439379,-500.0,0.00017635,2]
[351178008,1738397439388,-500.0,0.00017635,2]
[351178010,1738397439397,-500.0,0.00017635,2]
[351178012,1738397439406,-500.0,0.00017635,2]
[351178014,1738397439414,-500.0,0.00017635,2]
[351178016,1738397439424,-500.0,0.00017635,2]
[351178018,1738397439434,-265.9633736,0.00017635,2]
[351178020,1738397439443,-500.0,0.00017635,2]
[351178022,1738397439452,-500.0,0.00017635,2]
[351178024,1738397439461,-500.0,0.00017635,2]
[351178026,1738397439470,-500.0,0.00017635,2]
[351178028,1738397439479,-500.0,0.00017635,2]
[351178030,1738397439489,-500.0,0.00017635,2]
[351178032,1738397439498,-514.90418302,0.00017635,2]
[351178034,1738397439508,-500.0,0.00017635,2]
[351178036,1738397439517,-500.0,0.00017635,2]
[351178038,1738397439526,-764.0,0.00017635,2]
[351178040,1738397439535,-500.0,0.00017635,2]
[351178042,1738397439544,-810.2,0.00017635,2]
[351178044,1738397439554,-631.40569777,0.00017635,2]
[351178046,1738397439563,-523.85525929,0.00017635,2]
[351178048,1738397439573,-500.0,0.00017635,2]
[351178050,1738397439582,-500.0,0.00017635,2]
[351178052,1738397439591,-500.0,0.00017635,2]
[351178054,1738397439600,-650.28,0.00017635,2]
[351178056,1738397439609,-500.0,0.00017635,2]
[351178058,1738397439619,-520.42,0.00017635,2]
[351178060,1738397439629,-500.0,0.00017635,2]
[351178062,1738397439642,-500.0,0.00017635,2]
[351178064,1738397439652,-500.0,0.00017635,2]
[351178066,1738397439661,-500.0,0.00017635,2]
[351178068,1738397439670,-500.0,0.00017635,2]
[351178070,1738397439679,-500.0,0.00017635,2]
[351178071,1738397439689,-500.0,0.00017635,2]
[351178073,1738397439698,-529.96,0.00017635,2]
[351178075,1738397439707,-500.0,0.00017635,2]
[351178077,1738397439716,-500.0,0.00017635,2]
[351178079,1738397439725,-585.03,0.00017635,2]
[351178081,1738397439734,-500.0,0.00017635,2]
[351178083,1738397439748,-818.98,0.00017635,2]
[351178085,1738397439757,-500.0,0.00017635,2]
[351178100,1738397439766,-500.0,0.00017635,2]